bitfinex-derivatives/quotes_SOLF0:USTF0_20220110
["timestamp","ask_amount","ask_price","bid_price","bid_amount"]
[1641788537279,4.0,142.06,142.05,55.32958]
[1641788537480,6.07298438,142.06,141.99,1.758]
[1641788537681,4.0,142.01,141.96,1.76]
[1641788537879,4.0,142.03,142.0,3.99145641]
[1641788538379,7.70514275,142.05,141.97,3.99145641]
[1641788538380,4.0,142.01,141.97,3.99145641]
[1641788538780,4.0,142.0,141.97,3.99145641]
[1641788538979,2.07298438,142.0,141.95,3.99145641]
[1641788539180,2.07298438,142.0,141.99,27.66479]
[1641788539379,2.07298438,142.02,141.99,27.66479]
[1641788539781,4.0,142.0,141.98,27.66479]
[1641788539987,4.0,141.99,141.98,27.66479]
[1641788540188,14.64698438,141.99,141.98,27.66479]
[1641788541384,14.64698438,141.99,141.94,27.66479]
[1641788541584,4.0,141.96,141.94,27.66479]
[1641788541983,2.07298438,141.95,141.94,27.66479]
[1641788542785,5.904,141.98,141.94,27.66479]
[1641788542984,4.0,141.97,141.94,27.66479]
[1641788543386,6.0787214,141.97,141.94,27.66479]
[1641788543586,2.0787214,141.97,141.94,27.66479]
[1641788543786,40.05621451,142.04,141.94,27.66479]
[1641788543787,4.0,142.0,141.94,27.66479]
[1641788544087,4.0,142.03,141.94,34.15379]
[1641788544286,2.07829396,141.99,141.95,1.76]
[1641788544686,6.07829396,141.99,141.95,1.76]
[1641788544886,4.0,141.99,141.95,1.76]
[1641788545087,4.0,142.0,141.95,1.76]
[1641788545288,2.07829396,141.98,141.97,27.66479]
[1641788545486,2.07829396,141.98,141.97,33.83179]
[1641788545687,2.07829396,141.99,141.97,33.83179]
[1641788546087,2.07829396,142.01,141.97,33.83179]
[1641788546288,4.0,141.99,141.97,33.83179]
[1641788546687,6.07829396,141.98,141.97,33.83179]
[1641788546887,2.07829396,141.98,141.97,33.83179]
[1641788547488,6.07829396,142.02,141.97,35.59179]
[1641788547690,2.07829396,142.02,141.97,33.83179]
[1641788548191,4.0,142.01,141.97,33.83179]
[1641788548490,6.07829396,142.02,141.97,33.83179]
[1641788549291,6.07829396,142.02,142.01,27.66479]
[1641788549691,6.07829396,142.02,141.97,27.66479]
[1641788550495,4.0,142.0,141.97,27.66479]
[1641788550796,2.07829396,142.02,141.98,4.0]
[1641788550996,2.07829396,142.02,142.0,7.03705007]
[1641788551194,9.396e-05,142.02,142.01,29.42479]
[1641788551395,4.0,142.1,142.01,29.42479]
[1641788551396,4.0,142.09,142.01,40.69179]
[1641788551694,4.0,142.08,142.01,36.69179]
[1641788551895,4.0,142.07,142.01,36.69179]
[1641788552495,1.44953685,142.06,142.01,36.69179]
[1641788552895,5.44953685,142.07,142.01,36.69179]
[1641788553097,1.44953685,142.07,142.01,36.69179]
[1641788553295,1.44953685,142.07,142.06,27.66479]
[1641788553495,16.97040016,142.16,142.06,35.80779]
[1641788553496,4.0,142.09,142.06,35.80779]
[1641788553894,4.0,142.08,142.06,35.80779]
[1641788554697,4.0,142.07,142.06,35.80779]
[1641788554896,4.0,142.08,142.06,35.80779]
[1641788555097,4.0,142.11,142.06,39.7975402]
[1641788555499,4.0,142.1,142.07,3.9897502]
[1641788555896,4.0,142.09,142.07,3.9897502]
[1641788556096,4.0,142.08,142.07,3.9897502]
[1641788556597,4.0,142.09,142.07,3.9897502]
[1641788556802,4.0,142.08,142.07,3.9897502]
[1641788558001,4.0,142.08,142.05,27.66479]
[1641788558203,4.0,142.07,142.05,27.66479]
[1641788558402,4.0,142.06,142.05,27.66479]
[1641788559503,4.0,142.06,142.05,31.6553558]
[1641788559704,4.0,142.07,142.05,31.6553558]
[1641788559906,4.0,142.06,142.05,31.6553558]
[1641788560106,4.0,142.06,142.01,27.66479]
[1641788560305,4.0,142.04,142.01,27.66479]
[1641788560505,4.0,142.05,142.01,27.66479]
[1641788560707,4.0,142.03,142.02,3.99065301]
[1641788560905,4.0,142.04,142.02,3.99065301]
[1641788561105,4.0,142.08,142.02,3.99065301]
[1641788561307,4.0,142.06,142.02,3.99065301]
[1641788562306,4.0,142.07,142.02,3.99065301]
[1641788562909,4.0,142.09,142.02,3.99065301]
[1641788563107,4.0,142.04,142.03,1.758]
[1641788563408,4.0,142.07,142.03,11.61365301]
[1641788563607,4.0,142.06,142.03,11.61365301]
[1641788563808,20.49270272,142.1,142.04,3.99065301]
[1641788564009,14.86259493,142.1,142.04,3.99065301]
[1641788564307,4.0,142.08,142.04,3.99065301]
[1641788565206,4.0,142.08,142.05,27.66479]
[1641788565607,4.0,142.07,142.05,27.66479]
[1641788565807,4.0,142.07,142.06,3.99065301]
[1641788566308,4.0,142.08,142.06,3.99065301]
[1641788566909,4.0,142.09,142.06,3.99065301]
[1641788567308,4.0,142.07,142.06,3.99065301]
[1641788567909,4.0,142.08,142.05,27.66479]
[1641788568108,2.49820888,142.07,142.05,27.66479]
[1641788568710,2.49820888,142.07,142.06,3.99004218]
[1641788568909,6.49820888,142.08,142.06,11.52504218]
[1641788569512,6.49820888,142.08,142.06,7.535]
[1641788569710,4.0,142.08,142.06,7.535]
[1641788569911,4.0,142.09,142.06,7.535]
[1641788570110,4.0,142.08,142.06,7.535]
[1641788570309,4.0,142.09,142.06,7.535]
[1641788570509,2.49849662,142.08,142.06,7.535]
[1641788570712,6.49849662,142.08,142.06,7.535]
[1641788571510,4.0,142.07,142.01,29.42279]
[1641788571711,4.0,142.05,141.99,14.86259493]
[1641788571910,4.0,142.04,141.99,14.86259493]
[1641788572109,17.09975935,142.07,141.99,14.86259493]
[1641788572310,17.09975935,142.07,142.0,3.99085238]
[1641788572509,21.09975935,142.07,142.0,3.99085238]
[1641788572710,21.09975935,142.07,142.0,5.75085238]
[1641788572910,14.60126273,142.07,142.0,5.75085238]
[1641788573111,14.86259493,142.08,142.01,3.99085238]
[1641788573309,14.86259493,142.08,142.02,27.66479]
[1641788573812,6.4987825,142.08,142.03,3.99085238]
[1641788574511,6.4987825,142.08,142.03,13.09385238]
[1641788574811,6.4987825,142.07,142.03,13.09385238]
[1641788575211,2.4987825,142.07,142.04,3.99085238]
[1641788575511,2.4987825,142.06,142.04,3.99085238]
[1641788576112,2.4987825,142.08,142.04,3.99085238]
[1641788576513,6.4987825,142.08,142.04,3.99085238]
[1641788577413,4.0,142.07,142.04,3.99085238]
[1641788577613,6.4987825,142.07,142.04,3.99085238]
[1641788578314,2.4987825,142.07,142.04,3.99085238]
[1641788578515,4.0,142.09,142.03,3.99085238]
[1641788578714,4.0,142.08,142.03,9.75485238]
[1641788578915,4.0,142.09,142.03,9.75485238]
[1641788579114,4.0,142.07,142.03,9.75485238]
[1641788579314,6.50122556,142.08,142.03,9.75485238]
[1641788579513,4.0,142.07,142.04,3.99085238]
[1641788580316,18.86259493,142.09,142.04,3.99085238]
[1641788580615,18.86259493,142.09,142.04,13.29785238]
[1641788580814,18.86259493,142.09,142.04,9.307]
[1641788581015,2.50121964,142.08,142.04,9.307]
[1641788581216,2.50121964,142.08,142.05,3.99085238]
[1641788582016,6.50121964,142.08,142.03,3.99085238]
[1641788582216,4.0,142.05,142.03,3.99085238]
[1641788582417,12.77,142.05,142.03,3.99085238]
[1641788582819,8.77,142.05,142.03,3.99085238]
[1641788583019,2.50121964,142.04,142.03,3.99085238]
[1641788583818,1.45404555,142.04,142.03,3.99085238]
[1641788584220,1.45404555,142.06,142.03,3.99085238]
[1641788584420,1.45404555,142.06,142.03,9.74385238]
[1641788584619,2.5003667,142.04,142.03,9.74385238]
[1641788584820,2.5003667,142.04,142.03,5.753]
[1641788585222,7.95441225,142.04,142.03,5.753]
[1641788585421,7.95441225,142.04,142.0,27.66479]
[1641788585626,4.0,142.01,141.97,14.86259493]
[1641788585823,12.865,142.01,141.97,14.86259493]
[1641788586025,4.0,141.98,141.97,14.86259493]
[1641788586231,12.306,141.98,141.94,65.78603875]
[1641788586625,13.76004555,141.98,141.97,2.4764452]
[1641788586924,13.76004555,141.98,141.97,0.0164452]
[1641788587123,12.306,141.98,141.97,0.0164452]
[1641788587324,17.94063499,141.98,141.97,0.0164452]
[1641788587724,45.60542499,141.98,141.97,0.0164452]
[1641788588024,45.60542499,141.98,141.9,27.66479]
[1641788588224,8.306,141.98,141.91,4.0]
[1641788588426,4.0,142.0,141.92,1.76]
[1641788588624,7.04423781,142.01,141.92,1.76]
[1641788588625,4.0,141.96,141.92,1.76]
[1641788588824,4.0,141.97,141.91,1.76]
[1641788589025,4.0,141.97,141.9,27.66479]
[1641788589228,4.0,141.99,141.9,27.66479]
[1641788589426,4.0,141.98,141.9,31.66479]
[1641788589627,27.66479,141.99,141.9,31.66479]
[1641788589826,5.63333552,142.02,141.93,4.0]
[1641788590026,47.75304154,142.06,141.94,8.80002253]
[1641788590228,38.12124875,142.06,141.95,4.0]
[1641788590426,4.0,142.05,141.96,1.76]
[1641788590626,4.0,142.05,141.96,7.777]
[1641788590827,4.0,142.05,141.97,1.76]
[1641788591026,4.0,142.04,141.97,1.76]
[1641788591226,4.0,142.03,141.94,1.76]
[1641788591426,5.6316976,142.06,141.94,1.76]
[1641788591625,4.0,142.03,141.96,27.66479]
[1641788593226,4.0,142.04,141.96,27.66479]
[1641788593428,4.0,142.04,141.96,35.27779]
[1641788593628,37.29691916,142.05,141.96,35.27779]
[1641788593829,4.0,142.04,141.96,35.27779]
[1641788595329,5.63212916,142.05,141.96,35.27779]
[1641788595529,59.49867654,142.08,141.98,4.0]
[1641788595730,5.63077654,142.08,142.0,27.66479]
[1641788595930,5.63077654,142.08,142.0,38.51579]
[1641788596130,5.63077654,142.08,142.0,36.75579]
[1641788596330,9.63077654,142.08,142.0,36.75579]
[1641788596832,5.63077654,142.08,142.0,36.75579]
[1641788597731,5.63077654,142.08,142.03,27.66479]
[1641788597933,9.63077654,142.08,142.0,36.75579]
[1641788598133,5.63077654,142.08,142.0,36.75579]
[1641788598833,4.0,142.05,142.0,36.75579]
[1641788599334,4.0,142.06,142.0,36.75579]
[1641788599532,4.0,142.07,142.0,36.75579]
[1641788599735,4.0,142.08,142.0,36.75579]
[1641788599932,9.63046248,142.09,142.0,36.75579]
[1641788600133,27.66479,142.07,142.01,3.99097318]
[1641788600534,33.2960939,142.07,142.01,3.99097318]
[1641788600732,37.2960939,142.07,142.01,3.99097318]
[1641788601133,33.2960939,142.07,142.01,3.99097318]
[1641788601533,5.6313039,142.07,142.01,3.99097318]
[1641788602437,1.45297393,142.06,142.01,3.99097318]
[1641788603036,5.45297393,142.06,142.01,3.99097318]
[1641788603236,11.0844606,142.06,142.01,3.99097318]
[1641788603737,5.45297393,142.05,142.01,3.99097318]
[1641788603936,1.45297393,142.05,142.01,3.99097318]
[1641788604136,1.45297393,142.04,142.01,3.99097318]
[1641788604638,1.45297393,142.05,142.01,3.99097318]
[1641788605039,11.083655,142.08,142.01,3.99097318]
[1641788605337,4.0,142.07,142.01,3.99097318]
[1641788605636,5.45297393,142.07,142.01,3.99097318]
[1641788605838,5.45297393,142.06,142.01,3.99097318]
[1641788606238,1.45297393,142.06,142.01,3.99097318]
[1641788606436,1.45297393,142.05,142.01,3.99097318]
[1641788606837,11.08473677,142.06,142.01,3.99097318]
[1641788607240,1.45297393,142.05,142.01,3.99097318]
[1641788609036,4.0,142.04,142.01,3.99097318]
[1641788609337,1.45297393,142.03,142.01,3.99097318]
[1641788611840,4.0,142.02,142.01,3.99097318]
[1641788612040,1.45297393,142.03,142.01,3.99097318]
[1641788612640,1.45297393,142.03,141.98,27.66479]
[1641788612641,1.45297393,142.03,141.99,3.99097318]
[1641788613241,5.45297393,142.03,141.99,3.99097318]
[1641788613442,1.45297393,142.03,141.99,3.99097318]
[1641788614542,5.45297393,142.03,141.99,3.99097318]
[1641788614742,11.08588486,142.03,141.99,3.99097318]
[1641788615242,1.45297393,142.02,141.95,3.99097318]
[1641788617042,5.63357426,142.01,141.95,3.99097318]
[1641788617442,1.45297393,142.02,141.97,4.0]
[1641788617644,1.45297393,142.0,141.98,1.76]
[1641788618044,18.89730394,142.08,141.98,5.75097318]
[1641788618243,10.75761471,142.07,141.98,5.75097318]
[1641788618445,10.75761471,142.07,141.99,3.99097318]
[1641788618446,5.45377024,142.06,141.99,3.99097318]
[1641788618944,1.45377024,142.05,141.99,3.99097318]
[1641788619345,5.45377024,142.05,141.98,31.65576318]
[1641788619545,1.45377024,142.05,141.98,31.65576318]
[1641788619746,1.45377024,142.04,141.99,3.99097318]
[1641788619946,5.45377024,142.04,141.99,3.99097318]
[1641788620248,7.08582967,142.05,141.99,3.99097318]
[1641788620549,4.0,142.0,141.99,3.99097318]
[1641788620748,37.65379,142.0,141.99,3.99097318]
[1641788620946,39.10756024,142.0,141.97,14.89730394]
[1641788621148,44.74165201,142.0,141.97,14.89730394]
[1641788621346,4.0,141.98,141.94,42.56209394]
[1641788621846,9.63452597,141.99,141.94,14.89730394]
[1641788622247,2.25306812,141.98,141.95,3.99233244]
[1641788623748,4.0,142.01,141.95,3.99233244]
[1641788623749,2.25306812,142.0,141.95,3.99233244]
[1641788623947,2.25306812,142.0,141.95,13.41333244]
[1641788624147,2.25306812,142.01,141.95,13.41333244]
[1641788624847,2.25306812,142.01,141.96,3.99233244]
[1641788625047,2.25306812,142.02,141.96,3.99233244]
[1641788625448,2.25306812,142.02,141.96,18.88963638]
[1641788626149,2.25306812,142.03,141.97,3.99233244]
[1641788626549,2.25306812,142.04,141.97,3.99233244]
[1641788626749,2.25306812,142.04,141.97,31.65712244]
[1641788627448,2.25306812,142.04,141.98,3.99233244]
[1641788627649,2.50286757,142.03,141.98,6.47034771]
[1641788627949,2.50286757,142.03,141.98,10.47034771]
[1641788628149,2.50286757,142.03,141.98,6.47034771]
[1641788628349,14.89730394,142.06,141.99,3.99233244]
[1641788628549,14.89730394,142.08,141.99,31.01965165]
[1641788628851,2.64951563,142.05,142.0,27.66479]
[1641788629249,2.64951563,142.07,142.01,3.99233244]
[1641788630151,2.50237803,142.06,142.02,2.47801527]
[1641788630349,2.50237803,142.06,142.02,8.79701527]
[1641788630950,2.50237803,142.06,142.02,6.319]
[1641788631151,2.64951563,142.05,142.03,3.99233244]
[1641788632051,2.64951563,142.05,142.01,3.99233244]
[1641788632751,2.64951563,142.07,142.01,3.99233244]
[1641788633051,2.64951563,142.07,142.02,2.47645986]
[1641788633752,2.64951563,142.07,142.03,3.99233244]
[1641788633952,2.50130994,142.06,142.03,3.99233244]
[1641788634652,2.64951563,142.05,142.03,3.99233244]
[1641788634851,10.71151563,142.05,142.03,3.99233244]
[1641788635453,2.64951563,142.04,142.01,3.99233244]
[1641788636458,2.64951563,142.06,142.01,3.99233244]
[1641788639859,2.64951563,142.06,142.01,9.72533244]
[1641788640259,2.64951563,142.06,142.01,13.72533244]
[1641788640460,2.64951563,142.07,142.02,6.46766804]
[1641788640861,2.64951563,142.07,142.02,10.46766804]
[1641788641160,2.64951563,142.08,142.04,4.0]
[1641788641360,14.89730394,142.1,142.07,55.32958]
[1641788641562,14.89730394,142.1,142.07,61.69258]
[1641788641963,2.64707842,142.09,142.08,3.99233244]
[1641788642564,2.49896917,142.13,142.08,3.99233244]
[1641788643564,17.39627311,142.14,142.08,3.99233244]
[1641788643966,17.39627311,142.14,142.08,7.99233244]
[1641788644567,17.39627311,142.14,142.09,3.99233244]
[1641788644966,21.39627311,142.14,142.09,3.99233244]
[1641788645166,21.39627311,142.14,142.08,3.99233244]
[1641788645167,17.39627311,142.14,142.08,3.99233244]
[1641788645366,6.806,142.14,142.09,2.47449468]
[1641788645967,6.806,142.14,142.1,3.99233244]
[1641788646365,10.806,142.14,142.1,3.99233244]
[1641788646967,10.806,142.14,142.08,3.99233244]
[1641788649471,4.0,142.13,142.08,3.99233244]
[1641788649871,9.62874028,142.13,142.08,3.99233244]
[1641788650270,5.62874028,142.13,142.08,3.99233244]
[1641788650470,9.62878029,142.13,142.08,3.99233244]
[1641788652175,4.0,142.12,142.08,3.99233244]
[1641788652373,9.62878029,142.13,142.08,3.99233244]
[1641788652573,5.62960037,142.11,142.08,3.99233244]
[1641788653073,37.29320464,142.14,142.08,3.99233244]
[1641788653273,52.19050858,142.14,142.08,11.91833244]
[1641788653874,52.19050858,142.14,142.09,3.99233244]
[1641788654074,33.29320464,142.14,142.09,3.99233244]
[1641788654275,5.62841464,142.14,142.09,3.99233244]
[1641788655476,6.75324941,142.16,142.09,3.99233244]
[1641788655675,42.56209394,142.18,142.1,4.0]
[1641788655875,42.56209394,142.18,142.11,1.758]
[1641788656075,42.56209394,142.18,142.12,27.66479]
[1641788656477,27.66479,142.18,142.13,3.99233244]
[1641788656877,3.87264263,142.08,142.05,8.846]
[1641788657077,3.87264263,142.08,142.04,14.89730394]
[1641788657481,4.0,142.13,142.04,14.89730394]
[1641788657881,11.03779295,142.14,142.04,14.89730394]
[1641788658080,27.66479,142.09,142.05,3.98924215]
[1641788658280,27.66479,142.11,142.05,3.98924215]
[1641788658580,3.0511353,142.1,142.05,8.096]
[1641788658780,3.0511353,142.1,142.05,9.854]
[1641788659180,3.0511353,142.1,142.06,3.98924215]
[1641788660784,3.0511353,142.1,142.04,3.98924215]
[1641788661790,3.0511353,142.1,142.05,2.46515972]
[1641788662184,3.0511353,142.1,142.06,3.98924215]
[1641788663185,3.53e-05,142.1,142.09,4.0]
[1641788663385,7.03779295,142.14,142.09,4.0]
[1641788663583,7.03779295,142.14,142.1,4.0]
[1641788663783,7.03779295,142.14,142.07,10.918]
[1641788663986,16.92479295,142.14,142.06,1.758]
[1641788664286,4.0,142.13,142.03,14.89730394]
[1641788664486,6.13476322,142.13,142.07,3.98860873]
[1641788664685,4.0,142.11,142.07,3.98860873]
[1641788664885,4.0,142.11,142.03,14.89730394]
[1641788664886,4.0,142.09,142.04,3.98860873]
[1641788665089,17.51374788,142.11,142.04,3.98860873]
[1641788665288,2.13476322,142.08,142.04,3.98860873]
[1641788665486,16.94056471,142.08,142.04,3.98860873]
[1641788665887,9.175,142.08,142.04,3.98860873]
[1641788666286,2.13476322,142.07,142.02,3.98860873]
[1641788666986,2.13476322,142.07,142.03,2.46874084]
[1641788667485,2.13476322,142.07,142.04,3.98860873]
[1641788668288,2.13476322,142.07,142.02,3.98860873]
[1641788668690,6.13476322,142.07,142.02,3.98860873]
[1641788668891,11.76600272,142.07,142.02,3.98860873]
[1641788669390,2.13476322,142.06,142.02,3.98860873]
[1641788669589,2.13476322,142.06,142.0,3.98860873]
[1641788669792,6.13476322,142.06,142.0,3.98860873]
[1641788670192,33.79955322,142.06,142.0,3.98860873]
[1641788670592,33.79955322,142.06,142.01,2.47223873]
[1641788670792,2.13476322,142.05,142.01,2.47223873]
[1641788670994,4.0,142.03,142.01,2.47223873]
[1641788671192,6.617,142.03,142.02,3.98860873]
[1641788671794,8.75176322,142.03,142.02,3.98860873]
[1641788672293,2.13476322,142.03,142.02,13.30060873]
[1641788672694,2.13476322,142.05,142.02,13.30060873]
[1641788673295,2.13476322,142.05,142.03,3.98860873]
[1641788674095,2.13476322,142.05,141.99,3.98860873]
[1641788674696,2.13476322,142.05,141.99,18.88591267]
[1641788675196,2.13476322,142.05,142.0,3.98860873]
[1641788675399,2.13476322,142.05,142.0,6.45917313]
[1641788675798,2.13476322,142.05,142.01,3.98860873]
[1641788676397,2.13476322,142.05,142.01,6.45917313]
[1641788676997,2.13476322,142.05,142.01,3.98860873]
[1641788677197,2.13476322,142.05,142.02,3.98860873]
[1641788677597,2.13476322,142.05,142.01,3.98860873]
[1641788680200,2.13476322,142.05,141.99,3.98860873]
[1641788681104,2.13476322,142.05,142.0,2.46987641]
[1641788681600,2.13476322,142.05,142.01,3.98860873]
[1641788681999,2.13476322,142.05,142.01,10.24660873]
[1641788682600,2.13476322,142.05,142.02,3.98860873]
[1641788687408,2.13476322,142.05,141.99,24.80107826]
[1641788687409,2.13476322,142.05,142.0,3.98860873]
[1641788688109,2.13476322,142.05,142.01,2.47217446]
[1641788688510,5.63243398,142.04,142.01,2.47217446]
[1641788688713,5.63243398,142.04,142.02,3.98860873]
[1641788689111,2.13476322,142.03,142.02,3.98860873]
[1641788690515,2.13476322,142.03,141.99,3.98860873]
[1641788691217,2.13476322,142.03,142.0,2.47457597]
[1641788691414,34.42270094,142.06,142.0,8.32457597]
[1641788691816,2.13414329,142.05,142.01,3.98860873]
[1641788692016,6.13414329,142.05,142.01,3.98860873]
[1641788692218,5.63229083,142.04,142.01,6.4631847]
[1641788692416,7.76643412,142.04,142.01,6.4631847]
[1641788692817,2.13414329,142.03,142.02,3.98860873]
[1641788693217,2.13414329,142.03,142.01,3.98860873]
[1641788693822,6.13414329,142.03,141.99,3.98860873]
[1641788694218,2.13414329,142.02,141.99,3.98860873]
[1641788694519,7.7672799,142.02,142.0,2.47595957]
[1641788694719,5.63313661,142.02,142.0,2.47595957]
[1641788695021,5.63313661,142.02,142.01,3.98860873]
[1641788695520,7.76759367,142.02,142.01,3.98860873]
[1641788695721,1.64488151,142.01,142.0,2.47595957]
[1641788695921,7.76759367,142.02,142.0,2.47595957]
[1641788696121,5.63313661,142.02,142.0,2.47595957]
[1641788696321,5.63313661,142.02,141.97,14.89730394]
[1641788696520,34.42270094,142.06,141.97,14.89730394]
[1641788696720,4.0,142.04,141.97,14.89730394]
[1641788696920,4.0,142.04,141.98,3.99053881]
[1641788697120,9.43477696,142.05,141.98,27.41684275]
[1641788697321,2.93218228,142.03,141.98,27.41684275]
[1641788697821,2.93218228,142.04,141.99,21.36558519]
[1641788698221,2.93218228,142.05,142.0,3.99053881]
[1641788698723,2.93218228,142.05,142.01,2.47774244]
[1641788698924,6.93218228,142.05,142.01,2.47774244]
[1641788699325,2.93218228,142.04,142.02,3.99053881]
[1641788699723,2.93218228,142.03,142.02,3.99053881]
[1641788700525,2.93218228,142.03,141.99,3.99053881]
[1641788700925,2.93218228,142.02,141.99,3.99053881]
[1641788701324,5.63253931,142.04,141.99,3.99053881]
[1641788701926,2.53274828,142.03,142.0,2.47687875]
[1641788702226,2.53274828,142.03,142.01,3.99053881]
[1641788702627,8.16573663,142.03,142.01,3.99053881]
[1641788703127,2.53274828,142.02,142.01,3.99053881]
[1641788703627,5.63298835,142.03,142.01,3.99053881]
[1641788704027,34.42270094,142.06,141.98,3.99053881]
[1641788704230,34.42270094,142.06,142.02,2.47644456]
[1641788704431,4.0,142.04,142.02,2.47644456]
[1641788704628,17.6725381,142.04,142.02,2.47644456]
[1641788704828,17.6725381,142.04,142.03,3.99053881]
[1641788705028,13.6725381,142.04,142.03,3.99053881]
[1641788705930,13.6725381,142.04,142.0,3.99053881]
[1641788706129,13.6725381,142.04,142.03,3.99053881]
[1641788706629,13.6725381,142.04,142.01,2.4769797]
[1641788707131,13.6725381,142.04,142.02,3.99053881]
[1641788707331,1.64247803,142.02,141.99,2.4769797]
[1641788707531,6.758478,142.05,141.99,2.4769797]
[1641788707933,6.758478,142.05,141.98,14.89730394]
[1641788708532,6.758478,142.05,141.99,3.45382604]
[1641788709539,6.758478,142.05,142.0,2.4769797]
[1641788709745,10.758478,142.05,142.0,2.4769797]
[1641788709938,10.758478,142.05,142.01,3.45382604]
[1641788711239,6.758478,142.05,142.0,3.45382604]
[1641788711439,10.758478,142.05,142.0,3.45382604]
[1641788712240,10.758478,142.05,141.98,3.45382604]
[1641788712442,4.0,142.04,141.98,3.45382604]
[1641788712642,6.50177651,142.04,141.98,3.45382604]
[1641788712842,5.63290413,142.03,141.98,3.45382604]
[1641788713044,33.29769413,142.03,141.98,3.45382604]
[1641788713443,5.63369781,142.01,141.99,2.47683328]
[1641788714045,5.63369781,142.01,142.0,3.45382604]
[1641788715346,5.63369781,142.01,141.96,3.45382604]
[1641788716347,5.63369781,142.01,141.97,2.47713076]
[1641788716547,5.63369781,142.01,141.97,9.01313076]
[1641788716747,5.63369781,142.01,141.98,3.45382604]
[1641788717947,5.63369781,142.01,141.99,2.47713076]
[1641788718748,5.63369781,142.01,142.0,3.45382604]
[1641788719548,5.63369781,142.01,141.97,14.89730394]
[1641788719749,4.0,142.0,141.97,14.89730394]
[1641788719949,5.63369781,142.01,141.93,38.12124875]
[1641788719950,10.76154336,141.98,141.93,38.12124875]
[1641788720151,4.0,141.97,141.93,38.12124875]
[1641788720351,4.0,141.97,141.94,24.87489077]
[1641788720750,27.66479,141.96,141.94,24.87489077]
[1641788720954,37.95424286,141.96,141.95,2.52766131]
[1641788721452,37.95424286,141.96,141.87,80.694705]
[1641788721650,41.95424286,141.96,141.87,80.694705]
[1641788721851,3.99245286,141.95,141.88,2.52821066]
[1641788722254,4.0,141.94,141.88,2.52821066]
[1641788722451,4.0,141.93,141.88,2.52821066]
[1641788722651,16.22845286,141.93,141.88,2.52821066]
[1641788722851,27.66479,141.92,141.88,2.52821066]
[1641788723052,31.65724286,141.92,141.88,2.52821066]
[1641788723754,27.66479,141.92,141.88,2.52821066]
[1641788723955,27.66479,141.92,141.87,2.52821066]
[1641788724353,3.99345912,141.91,141.86,2.52821066]
[1641788725153,3.99345912,141.91,141.86,6.52821066]
[1641788725552,3.99345912,141.91,141.86,4.28821066]
[1641788725753,27.66479,141.92,141.87,6.52821066]
[1641788725954,27.66479,141.92,141.87,9.70921066]
[1641788726253,27.66479,141.92,141.88,2.52821066]
[1641788727453,27.66479,141.92,141.87,6.52821066]
[1641788727854,27.66479,141.92,141.88,2.52821066]
[1641788729156,27.66479,141.92,141.87,6.52821066]
[1641788729356,27.66479,141.92,141.87,2.52821066]
[1641788729656,27.66479,141.92,141.88,2.52821066]
[1641788730058,27.66479,141.92,141.89,2.52821066]
[1641788730456,27.66479,141.92,141.9,2.52821066]
[1641788730856,27.66479,141.92,141.91,2.52821066]
[1641788731659,31.65800057,141.92,141.91,2.52821066]
[1641788732861,35.65800057,141.92,141.91,1.066e-05]
[1641788733061,5.63756288,141.91,141.82,55.9944]
[1641788733261,41.75300057,141.92,141.82,54.2344]
[1641788733460,41.75300057,141.92,141.82,58.2344]
[1641788733662,37.75979,141.92,141.82,58.2344]
[1641788733861,4.0,141.91,141.82,58.2344]
[1641788734460,3.9936941,141.9,141.83,2.22373446]
[1641788735863,3.9936941,141.9,141.82,2.22373446]
[1641788737863,7.9936941,141.9,141.82,2.22373446]
[1641788738363,4.0,141.9,141.82,2.22373446]
[1641788738566,5.63828849,141.89,141.82,2.22373446]
[1641788738764,11.87328849,141.89,141.82,2.22373446]
[1641788739062,17.51184003,141.89,141.82,2.22373446]
[1641788739265,45.17663003,141.89,141.82,2.22373446]
[1641788739463,3.99432148,141.88,141.82,2.22373446]
[1641788740567,5.6391656,141.87,141.82,2.22373446]
[1641788740764,9.6391656,141.87,141.82,2.22373446]
[1641788740964,5.6399452,141.85,141.82,2.22373446]
[1641788741164,14.3639452,141.85,141.82,2.22373446]
[1641788741363,27.66479,141.84,141.82,2.22373446]
[1641788741664,19.45187451,141.91,141.81,2.22373446]
[1641788741864,12.40267107,141.91,141.83,2.22373446]
[1641788742065,5.63751237,141.91,141.83,2.22373446]